bitfinex-derivatives/quotes_ETHF0:USTF0_20241013
["timestamp","ask_amount","ask_price","bid_price","bid_amount"]
[1728841390253,1.40717,2446.9,2446.2,0.50385]
[1728841390254,3.2788,2446.5,2446.2,0.50385]
[1728841390551,3.2788,2446.5,2446.3,0.40883]
[1728841390739,2.87,2446.5,2446.4,0.40882]
[1728841391150,2.87,2446.5,2445.9,0.095]
[1728841391343,2.87,2446.3,2446.2,0.40885]
[1728841391538,2.87,2446.3,2445.9,0.891]
[1728841391743,2.87,2446.3,2445.9,0.796]
[1728841391941,0.40878,2446.7,2446.4,0.40881]
[1728841392142,2.87,2446.6,2446.0,0.095]
[1728841392341,0.3956,2446.8,2445.9,4.0038]
[1728841392342,2.87,2446.4,2445.9,4.0038]
[1728841392545,2.87,2446.4,2446.2,0.40884]
[1728841392752,2.87,2446.4,2446.0,0.40889]
[1728841392954,2.87,2446.4,2446.2,0.40884]
[1728841393249,2.87,2446.4,2445.9,0.40889]
[1728841393442,2.87,2446.4,2445.8,0.095]
[1728841393443,2.87,2446.0,2445.8,0.095]
[1728841393639,2.87,2446.0,2445.9,0.4089]
[1728841393640,2.25638415,2446.0,2445.9,0.4089]
[1728841393851,2.15638415,2446.0,2445.9,0.4089]
[1728841394053,0.40891,2445.9,2445.7,0.40893]
[1728841394240,2.77,2445.8,2445.7,0.82913]
[1728841395054,2.77,2445.8,2445.7,0.4202]
[1728841395253,2.77,2445.8,2445.7,0.82914]
[1728841398254,3.17892,2445.8,2445.6,0.82825]
[1728841398455,3.17892,2445.8,2445.6,0.40895]
[1728841398961,2.77,2445.8,2445.5,0.4119]
[1728841399158,2.77,2445.8,2445.2,0.095]
[1728841399362,2.87,2445.4,2445.3,0.409]
[1728841399554,6.0778,2445.7,2445.2,0.8189]
[1728841399758,6.0778,2445.7,2445.6,0.40895]
[1728841400065,2.87,2445.7,2445.6,0.40895]
[1728841400755,2.87,2445.9,2445.4,3.2078]
[1728841400959,2.87,2445.9,2445.8,0.40892]
[1728841401157,2.87,2445.9,2445.4,3.01780001]
[1728841401357,2.87,2445.9,2444.8,4.91651385]
[1728841401358,1.02258,2445.2,2444.3,0.81825749]
[1728841401558,2.87,2444.4,2444.3,0.81825749]
[1728841401760,3.2078,2444.5,2444.3,0.81825749]
[1728841401761,2.87,2444.5,2444.3,0.81825749]
[1728841401963,2.87,2444.5,2444.4,0.40915]
[1728841402163,6.0778,2444.5,2444.3,1.23985749]
[1728841402360,6.0778,2444.5,2444.4,0.4004]
[1728841406263,6.0778,2444.5,2444.4,4.4916]
[1728841406471,2.87,2444.7,2444.4,4.90075]
[1728841406764,2.87,2444.7,2444.4,0.4004]
[1728841406955,2.87,2444.7,2444.6,0.40912]
[1728841407357,3.2078,2444.8,2444.6,0.40912]
[1728841407559,3.2078,2444.8,2444.4,0.4004]
[1728841407759,3.2078,2444.8,2444.4,0.80955]
[1728841408564,3.61694,2444.5,2444.3,0.4216]
[1728841408759,2.87,2444.4,2444.3,0.4216]
[1728841409370,2.87,2444.4,2444.1,0.3833]
[1728841409371,0.40918,2444.3,2444.1,0.3833]
[1728841409668,3.2078,2444.2,2444.1,0.3833]
[1728841411362,2.18438873,2444.2,2444.1,0.3833]
[1728841412270,5.05438873,2444.2,2443.6,0.095]
[1728841412579,6.48709,2443.7,2443.3,0.40933]
[1728841412877,0.40931,2443.5,2443.1,0.40936]
[1728841413167,6.0778,2443.7,2443.0,0.40938]
[1728841413374,6.0778,2443.7,2443.0,0.40939]
[1728841413375,3.61714,2443.4,2443.0,0.40939]
[1728841414177,0.40936,2443.2,2442.8,0.79301]
[1728841414471,3.89319,2443.7,2442.8,0.79301]
[1728841414472,3.2078,2443.7,2442.8,0.3836]
[1728841414662,3.27934,2443.3,2442.8,0.3836]
[1728841414870,3.27934,2443.3,2442.9,0.4094]
[1728841415474,0.40936,2443.2,2442.8,2.01601]
[1728841415672,0.40936,2443.2,2442.9,0.4094]
[1728841415869,2.87,2443.3,2442.9,0.4094]
[1728841416072,0.40936,2443.2,2442.8,2.01601]
[1728841416377,2.87,2443.3,2442.9,0.4094]
[1728841416378,3.27935,2443.3,2442.9,0.4094]
[1728841416772,2.87,2443.3,2442.8,1.6066]
[1728841416976,2.87,2443.3,2442.9,0.40939]
[1728841417167,2.87,2443.3,2442.8,1.6066]
[1728841417168,2.87,2443.3,2442.8,0.3836]
[1728841417369,2.87,2443.5,2443.2,0.40935]
[1728841417873,2.87,2443.5,2443.1,3.2078]
[1728841418078,2.87,2443.5,2443.1,3.61717]
[1728841418270,3.27931,2443.5,2443.1,3.61717]
[1728841418466,2.87,2443.5,2443.2,0.40935]
[1728841419368,3.2078,2443.7,2443.5,0.40929]
[1728841419569,6.0778,2443.7,2443.6,0.40929]
[1728841419764,6.0778,2443.7,2443.4,0.40932]
[1728841419975,6.0778,2443.7,2443.5,0.40929]
[1728841420174,6.0778,2443.7,2443.1,3.2078]
[1728841420175,6.0778,2443.7,2443.3,1.224]
[1728841420475,2.87,2443.7,2443.6,0.40929]
[1728841420670,2.87,2443.7,2443.4,4.4134]
[1728841420868,2.87,2443.7,2443.6,0.40929]
[1728841422271,2.87,2443.9,2443.8,0.40926]
[1728841425269,3.2078,2444.1,2443.7,3.2078]
[1728841425270,6.0778,2444.1,2443.7,3.2078]
[1728841425470,6.0778,2444.1,2444.0,0.40922]
[1728841426781,2.87,2444.1,2444.0,0.40922]
[1728841427078,3.6285,2444.5,2443.7,3.2078]
[1728841427079,2.87,2444.3,2444.2,0.40919]
[1728841427680,3.2078,2444.5,2444.4,0.40915]
[1728841427881,2.87,2444.6,2444.5,0.40914]
[1728841429986,2.87,2444.8,2444.7,0.4091]
[1728841431574,3.2078,2445.2,2444.6,1.2358]
[1728841431575,2.87,2445.0,2444.9,0.40907]
[1728841433483,2.87,2445.0,2444.6,0.3901]
[1728841433687,0.40913,2444.6,2444.3,0.40916]
[1728841433877,6.0778,2444.7,2444.3,0.40917]
[1728841433878,3.27914,2444.5,2444.3,0.40917]
[1728841434583,2.87,2444.5,2444.3,0.40917]
[1728841434778,2.87,2444.5,2444.4,0.40915]
[1728841434973,6.9612,2444.5,2443.8,0.095]
[1728841435178,2.87,2444.2,2443.9,0.40923]
[1728841435378,3.27919,2444.2,2443.8,0.40924]
[1728841435588,3.27919,2444.2,2443.8,3.61704]
[1728841435782,3.27919,2444.2,2443.8,0.40924]
[1728841435984,2.87,2444.2,2443.8,0.40924]
[1728841436692,3.27919,2444.2,2443.8,0.40924]
[1728841436887,3.27919,2444.2,2443.8,3.2078]
[1728841437087,3.2792,2444.2,2443.8,3.61705]
[1728841437794,0.40921,2444.1,2443.8,3.61705]
[1728841437993,3.2792,2444.2,2443.8,3.61705]
[1728841438286,0.40921,2444.1,2443.8,3.61705]
[1728841438687,0.40921,2444.1,2443.8,3.2078]
[1728841439399,0.40922,2444.0,2443.8,3.2078]
[1728841439694,0.40924,2443.9,2443.8,3.2078]
[1728841439995,2.87,2443.9,2443.5,3.2078]
[1728841440493,3.27924,2443.9,2443.6,0.40928]
[1728841440690,3.2078,2444.0,2443.5,3.2078]
[1728841440898,3.61703,2444.0,2443.7,0.40927]
[1728841441592,3.61703,2444.0,2443.7,0.80967]
[1728841441787,3.2078,2444.0,2443.9,0.40924]
[1728841441988,2.79856,2443.8,2443.7,0.4004]
[1728841442291,2.79856,2443.8,2443.7,0.80967]
[1728841443697,2.69856,2443.8,2443.7,0.80967]
[1728841443896,2.59856,2443.8,2443.7,0.80967]
[1728841444101,2.49856,2443.8,2443.7,0.80967]
[1728841444599,2.39856,2443.8,2443.7,0.80967]
[1728841444800,2.29856,2443.8,2443.7,0.80967]
[1728841445195,2.19856,2443.8,2443.7,0.80967]
[1728841445897,2.09856,2443.8,2443.6,2.108]
[1728841446102,1.99856,2443.8,2443.7,0.40927]
[1728841446802,6.09056,2443.8,2443.5,3.2078]
[1728841447007,0.40929,2443.6,2443.5,3.2078]
[1728841447796,0.40937,2443.1,2443.0,0.095]
[1728841448006,0.40937,2443.1,2442.8,7.02194019]
[1728841448007,2.87,2443.3,2442.8,4.907]
[1728841448206,2.87,2443.0,2442.8,3.617]
[1728841448408,3.2794,2443.0,2442.8,3.617]
[1728841449200,3.2794,2443.0,2442.8,4.02642]
[1728841449596,0.40947,2442.5,2442.4,0.095]
[1728841449796,6.0778,2442.5,2442.0,0.40956]
[1728841450011,6.0778,2442.5,2442.1,0.17557988]
[1728841450012,0.40952,2442.3,2442.1,0.17557988]
[1728841450301,1.02364,2442.7,2441.6,0.3978]
[1728841450302,6.0778,2442.2,2441.6,0.3978]
[1728841450500,6.0778,2442.2,2441.6,0.80742]
[1728841450501,2.87,2442.1,2441.6,0.80742]
[1728841450803,3.61734,2442.2,2441.7,0.4096]
[1728841450999,3.2078,2442.2,2441.8,0.40958]
[1728841451204,3.2078,2442.2,2441.6,0.3978]
[1728841451409,3.61733,2442.2,2441.7,0.4096]
[1728841452014,3.2078,2442.2,2441.6,0.3978]
[1728841452801,3.2078,2442.2,2442.0,0.40955]
[1728841453400,3.2078,2442.2,2441.9,0.40956]
[1728841453605,6e-05,2441.6,2441.5,3.2078]
[1728841453898,2.87,2442.1,2441.5,3.2078]
[1728841453899,2.87,2442.1,2441.9,0.40956]
[1728841455107,6.0778,2442.6,2441.8,3.2078]
[1728841455611,3.2078,2442.6,2441.9,1.02394]
[1728841455810,3.2078,2442.6,2442.4,0.40948]
[1728841457413,3.2078,2442.6,2442.0,0.4067]
[1728841457910,3.2078,2442.6,2442.4,0.40948]
[1728841458210,3.2078,2442.6,2442.1,0.4229]
[1728841458408,3.2078,2442.6,2442.4,0.40948]
[1728841458714,3.2078,2442.6,2442.5,0.40947]
[1728841458901,3.2078,2442.6,2442.1,0.4229]
[1728841458902,3.617,2442.8,2442.2,3.2078]
[1728841459101,3.617,2442.8,2442.7,0.40944]
[1728841461514,6.487,2442.8,2442.5,3.2078]
[1728841461713,6.487,2442.8,2442.4,0.40949]
[1728841461912,0.40945,2442.7,2442.4,0.40948]
[1728841462517,6.487,2442.8,2442.4,0.40948]
[1728841462819,6.89643,2442.8,2442.4,0.40948]
[1728841463210,6.89643,2442.8,2442.3,0.8277]
[1728841463411,6.89643,2442.8,2442.5,0.40946]
[1728841463815,6.487,2442.8,2442.6,0.40945]
[1728841464012,3.617,2442.8,2442.7,0.40944]
[1728841464212,3.617,2442.8,2442.3,0.8277]
[1728841464410,3.617,2442.8,2442.7,0.40944]
[1728841465418,3.617,2442.8,2442.3,1.85145]
[1728841465419,3.617,2442.8,2442.3,0.8277]
[1728841466016,0.40944,2442.7,2442.5,0.40947]
[1728841466721,3.617,2442.8,2441.3,2.1354847]
[1728841466929,4.02644,2442.8,2442.5,0.40946]
[1728841467221,0.40944,2442.7,2442.5,0.40946]
[1728841467413,3.61724,2442.7,2442.5,0.40946]
[1728841467614,3.2078,2442.7,2442.6,0.40946]
[1728841470621,3.2078,2442.7,2442.2,1.2083]
[1728841470622,3.2078,2442.7,2442.5,0.40946]
[1728841470816,3.2078,2442.7,2442.6,0.40946]
[1728841471314,3.617,2442.8,2442.7,0.40944]
[1728841471519,6.487,2442.8,2442.6,0.40945]
[1728841471715,3.2078,2442.7,2442.3,0.4254]
[1728841471915,3.61725,2442.7,2442.5,0.40947]
[1728841473123,3.2078,2442.7,2442.5,0.40947]
[1728841473419,3.61724,2442.7,2442.5,0.40947]
[1728841473820,3.61724,2442.7,2442.6,0.40946]
[1728841473821,3.2078,2442.7,2442.6,0.40946]
[1728841474524,3.617,2442.8,2442.6,0.40946]
[1728841474525,6.8248,2442.8,2442.7,0.40944]
[1728841474824,3.617,2442.8,2442.7,0.80794]
[1728841475126,3.617,2442.8,2442.7,4.90154]
[1728841476025,3.617,2442.8,2442.7,10.90154]
[1728841477222,2.9783,2442.8,2442.7,10.90154]
[1728841478230,2.9783,2442.8,2442.7,13.77154]
[1728841479432,2.9783,2442.8,2442.7,16.97934]
[1728841479919,2.9783,2442.8,2442.7,18.36334]
[1728841480634,0.095,2443.3,2442.7,23.3162544]
[1728841480839,3.3028,2443.6,2443.5,0.40931]
[1728841481129,3.2078,2443.6,2443.5,0.40931]
[1728841482129,6.0778,2443.6,2443.0,0.4231]
[1728841482335,0.81711,2443.5,2443.3,0.40933]
[1728841482530,0.4078,2443.5,2443.0,0.8419]
[1728841482836,0.4078,2443.5,2443.3,0.40933]
[1728841482837,0.81711,2443.5,2443.3,0.40933]
[1728841483428,0.4078,2443.5,2443.3,0.40933]
[1728841483733,0.81711,2443.5,2443.3,0.40933]
[1728841484433,0.81711,2443.5,2443.1,0.40937]
[1728841484434,0.81712,2443.5,2443.1,0.40937]
[1728841484731,3.2078,2443.3,2443.2,0.40935]
[1728841485332,0.80967,2443.7,2443.6,0.40929]
[1728841485724,0.80967,2443.7,2443.6,4.50129]
[1728841485930,0.80967,2443.7,2443.6,5.34929]
[1728841486232,0.80967,2443.7,2443.6,8.21929]
[1728841490334,0.80967,2443.7,2443.6,14.21929]
[1728841490941,0.80967,2443.7,2443.6,10.12729]
[1728841491232,0.80967,2443.7,2443.6,14.21929]
[1728841491937,0.80967,2443.7,2443.6,8.21929]
[1728841494038,0.80967,2443.7,2443.6,14.21929]
[1728841495735,1.99856,2443.8,2443.6,13.81]
[1728841495937,1.99856,2443.8,2443.7,4.50127]
[1728841501846,1.99856,2443.8,2443.7,5.88427]
[1728841502052,1.99856,2443.8,2443.7,11.88427]
[1728841502442,1.99856,2443.8,2443.7,5.88427]
[1728841502940,1.99856,2443.8,2443.7,0.40927]
[1728841503142,1.99856,2443.8,2443.7,5.88427]
[1728841503340,1.99856,2443.8,2443.7,1.79227]
[1728841503547,0.095,2444.3,2444.2,0.40919]
[1728841503739,0.8355,2444.8,2444.7,0.4091]
[1728841503946,4.0433,2444.8,2444.7,0.4091]
[1728841504245,4.0433,2444.8,2444.2,2.87]
[1728841504446,0.40911,2444.7,2444.4,0.40915]
[1728841504647,4.0433,2444.8,2444.5,0.40914]
[1728841504945,4.0433,2444.8,2444.4,0.40914]
[1728841504946,4.4524,2444.8,2444.4,0.40914]
[1728841505146,4.0433,2444.8,2444.2,4.253]
[1728841505343,4.0433,2444.8,2444.5,0.40913]
[1728841505743,4.0433,2444.8,2444.2,4.253]
[1728841505949,4.0433,2444.8,2444.6,0.40911]
[1728841507245,4.0433,2444.8,2444.7,0.4091]
[1728841507645,8.1337,2444.8,2444.7,0.4091]
[1728841507946,4.0433,2444.8,2444.7,0.4091]
[1728841508445,0.8355,2444.8,2444.7,0.4091]
[1728841509449,0.095,2445.2,2445.1,0.40904]
[1728841509645,0.7755,2445.2,2445.1,0.40904]
[1728841510562,0.7755,2445.2,2445.1,4.49864]
[1728841510861,0.7755,2445.2,2445.1,0.40904]
[1728841511962,0.7755,2445.2,2445.1,3.27904]
[1728841512757,3.2078,2445.6,2445.5,0.40897]
[1728841512959,0.4018,2445.7,2445.5,0.40897]
[1728841513266,0.4018,2445.7,2445.3,2.87]
[1728841513466,0.4018,2445.7,2445.6,0.40895]
[1728841514261,0.4018,2445.7,2445.6,3.27895]
[1728841514664,3.3028,2446.2,2446.1,0.40887]
[1728841514665,0.095,2446.2,2446.1,0.40887]
[1728841514859,0.3893,2446.2,2446.1,3.27887]
[1728841515166,0.3813,2446.2,2446.1,3.27887]
[1728841516058,0.2893,2446.2,2446.1,3.27887]
[1728841516661,0.095,2446.8,2446.7,0.40877]
[1728841516857,4.113,2447.3,2446.7,2.87]
[1728841516858,3.2078,2447.1,2446.7,2.87]
[1728841517063,0.4126,2447.2,2446.1,4.37143711]
[1728841517064,0.40884,2446.3,2446.1,4.37143711]
[1728841517271,0.4002,2446.2,2446.0,0.40889]
[1728841517460,0.4002,2446.2,2445.9,3.27889]
[1728841517656,0.4002,2446.2,2446.0,0.40889]
[1728841518069,0.4002,2446.2,2446.1,2.87]
[1728841518270,0.4002,2446.2,2446.1,3.27887]
[1728841518969,0.4002,2446.2,2446.1,2.87]
[1728841520465,0.4172,2446.3,2446.1,2.87]
[1728841522067,0.4172,2446.3,2446.2,0.40885]
[1728841522371,0.4172,2446.3,2446.1,3.27886]
[1728841522572,0.4172,2446.3,2446.1,2.87]
[1728841522773,0.4172,2446.3,2446.1,3.27886]
[1728841525958,0.4172,2446.3,2446.1,2.87]
[1728841526163,0.4172,2446.3,2446.2,0.40885]
[1728841527463,0.4172,2446.3,2446.1,2.87]
[1728841527659,0.40888,2446.1,2445.7,2.87]
[1728841527867,0.4151,2446.0,2445.8,0.40891]
[1728841528065,0.82399,2446.0,2445.8,0.40891]
[1728841528265,0.4187,2445.9,2445.8,0.40891]
[1728841528662,4.91641,2445.9,2445.6,0.40894]
[1728841528875,3.6278,2445.8,2445.4,0.40899]
[1728841529180,3.6278,2445.8,2445.2,2.87]
[1728841529181,3.2078,2445.5,2445.2,2.87]
[1728841529468,0.40899,2445.4,2445.2,2.87]
[1728841529673,0.42,2445.3,2445.0,2.87]
[1728841529869,3.61685,2445.1,2444.8,0.40909]
[1728841530069,3.61685,2445.1,2444.8,0.40908]
[1728841530969,3.2078,2445.1,2444.8,0.40909]
[1728841531168,3.61685,2445.1,2444.8,0.40909]
[1728841531367,0.40906,2445.0,2444.8,0.40909]
[1728841532578,0.40906,2445.0,2444.7,2.87]
[1728841532579,3.2078,2445.1,2444.7,0.4091]
[1728841532777,3.61685,2445.1,2444.8,0.40907]
[1728841533173,3.2078,2445.1,2445.0,0.40905]
[1728841533377,0.806,2445.3,2445.0,0.40905]
[1728841533378,0.42,2445.3,2445.0,2.87]
[1728841533576,0.42,2445.3,2445.2,0.40902]
[1728841533770,3.6278,2445.3,2445.2,0.40902]
[1728841534275,2.5693,2445.3,2445.2,7.36862]
[1728841534472,0.205,2445.9,2445.2,7.36862]
[1728841534473,0.205,2445.9,2445.8,0.40892]
[1728841534669,3.2078,2446.1,2446.0,0.40889]
[1728841534875,3.2078,2446.1,2445.8,2.87]
[1728841535075,3.2078,2446.1,2445.8,0.40891]
[1728841535383,3.2078,2446.1,2445.9,0.4089]
[1728841535384,3.61668,2446.1,2445.9,0.4089]
[1728841535581,3.2078,2446.1,2445.7,0.40894]
[1728841535883,3.61667,2446.1,2445.9,0.40889]
[1728841536180,3.2078,2446.1,2445.6,2.87]
[1728841536370,3.61669,2446.1,2445.8,0.40891]
[1728841536569,3.2078,2446.1,2445.8,0.40891]
[1728841536773,0.40893,2445.8,2445.6,0.40895]
[1728841536974,0.4147,2445.7,2445.6,0.40895]
[1728841537476,0.4147,2445.7,2445.6,7.36775]
[1728841538280,0.4147,2445.7,2445.6,3.27895]
[1728841538482,0.4147,2445.7,2445.6,7.36775]
[1728841538783,0.7987,2446.0,2445.9,0.4089]
[1728841538980,1.2218,2446.0,2445.8,0.40891]
[1728841539376,0.4231,2446.0,2445.8,0.40891]
[1728841539877,0.4231,2446.0,2445.6,2.87]
[1728841540082,0.4231,2446.0,2445.9,0.4089]
[1728841542276,4.5111,2446.0,2445.5,6.0778]
[1728841542480,0.40894,2445.7,2445.6,0.40895]
[1728841543285,0.40893,2445.8,2445.6,0.40895]
[1728841544683,0.40894,2445.7,2445.5,3.61676]
[1728841545290,1.44535,2446.0,2445.5,3.2078]
[1728841545481,0.40901,2445.3,2444.9,2.87]
[1728841545685,0.4072,2445.2,2445.0,0.40905]
[1728841546085,0.81622,2445.2,2445.0,0.40905]
[1728841546278,0.40904,2445.1,2444.9,3.27907]
[1728841546987,0.40904,2445.1,2444.9,0.40907]
[1728841547986,0.81624,2445.2,2444.9,0.40907]
[1728841548386,0.81624,2445.2,2444.8,3.2078]
[1728841548387,0.40905,2445.1,2444.8,3.61688]
[1728841548589,3.615,2445.2,2444.8,3.2078]
[1728841548894,0.40907,2444.9,2444.8,3.2078]
[1728841550195,0.80727,2444.9,2444.8,3.2078]
[1728841550392,0.3982,2444.9,2444.5,2.87]
[1728841550599,4.6287,2444.9,2444.5,2.87]
[1728841550787,0.40912,2444.6,2444.5,2.87]
[1728841550989,4.6287,2444.9,2444.1,3.93116056]
[1728841550990,3.606,2444.9,2444.1,3.93116056]
[1728841551294,3.606,2444.9,2444.1,3.27919]
[1728841551295,0.40916,2444.4,2444.1,3.27919]
[1728841552197,0.3987,2444.5,2444.1,2.87]
[1728841552392,0.3987,2444.5,2444.4,0.40915]
[1728841552995,0.3987,2444.5,2444.4,4.50035]
[1728841553305,0.3987,2444.5,2444.4,0.40915]
[1728841554991,0.3987,2444.5,2444.3,2.87]
[1728841554992,0.3987,2444.5,2444.3,3.27917]
[1728841555193,0.3987,2444.5,2444.3,0.40917]
[1728841555699,0.3987,2444.5,2444.4,0.40915]
[1728841556695,7.6977,2444.5,2443.8,2.08428056]
[1728841556898,0.40922,2444.1,2443.8,0.40924]
[1728841557086,3.2078,2444.2,2443.7,0.40926]
[1728841557087,0.81523,2444.0,2443.7,0.40926]
[1728841557396,0.406,2444.0,2443.8,0.40925]
[1728841557594,0.406,2444.0,2443.5,4.271]
[1728841557790,0.406,2444.0,2443.8,0.40926]
[1728841558387,0.81523,2444.0,2443.8,0.40926]
[1728841558594,0.81523,2444.0,2443.7,0.40926]
[1728841558901,0.81523,2444.0,2443.8,0.40925]
[1728841559192,0.81523,2444.0,2443.7,0.40926]
[1728841559389,0.81523,2444.0,2443.6,0.40928]
[1728841559390,0.406,2444.0,2443.6,0.40928]
[1728841559595,0.406,2444.0,2443.2,0.40935]
[1728841559596,0.40932,2443.5,2443.2,0.40935]
[1728841559790,1.02319,2443.7,2443.1,3.2078]
[1728841559791,0.3843,2443.4,2443.1,3.2078]
[1728841559989,0.3843,2443.4,2443.2,0.40935]
[1728841560186,0.3843,2443.4,2443.1,3.2078]
[1728841560398,3.2078,2443.8,2443.3,2.87]
[1728841560592,3.2078,2443.8,2443.6,0.40928]
[1728841560790,0.3843,2444.0,2443.8,0.40924]
[1728841561297,0.3843,2444.0,2443.9,0.40924]
[1728841561497,0.3843,2444.0,2443.8,4.092]
[1728841561796,0.3843,2444.0,2443.9,0.40924]
[1728841562204,0.3843,2444.0,2443.9,4.50124]
[1728841562598,0.3843,2444.0,2443.9,4.092]
[1728841562901,0.3843,2444.0,2443.8,0.40925]
[1728841563091,0.40925,2443.9,2443.7,3.2078]
[1728841563292,0.3843,2444.0,2443.7,3.2078]
[1728841563293,0.40926,2443.8,2443.7,3.2078]
[1728841564191,0.4041,2443.9,2443.7,3.2078]
[1728841564396,0.81334,2443.9,2443.7,3.2078]
[1728841564792,0.40926,2443.8,2443.7,3.2078]
[1728841567397,0.8214,2443.9,2443.7,3.2078]
[1728841567595,0.4041,2443.9,2443.7,3.2078]
[1728841567908,0.4041,2443.9,2443.8,0.40926]
[1728841568297,0.4041,2443.9,2443.8,4.50126]
[1728841569399,0.4041,2443.9,2443.8,4.092]
[1728841569996,6.0778,2444.5,2443.8,4.092]
[1728841570204,0.40922,2444.0,2443.8,0.40925]
[1728841570401,0.4197,2444.2,2443.8,0.40925]
[1728841570603,0.40921,2444.1,2443.8,0.40925]
[1728841570802,0.4197,2444.2,2443.8,0.40925]
[1728841571001,0.40922,2444.0,2443.8,0.40925]
[1728841571203,0.4197,2444.2,2443.8,0.40925]
[1728841571511,0.40921,2444.1,2443.8,0.40925]
[1728841571702,0.40921,2444.1,2443.7,3.2078]
[1728841572001,0.40922,2444.1,2443.8,0.40925]
[1728841572211,0.40923,2444.0,2443.8,0.40925]
[1728841572605,0.40923,2444.0,2443.7,3.2078]
[1728841572798,0.40925,2443.9,2443.7,3.2078]
[1728841572997,1.4427,2444.2,2443.5,1.7413]
[1728841572998,0.40927,2443.8,2443.5,1.7413]
[1728841573200,0.4126,2443.7,2443.5,0.4093]
[1728841573402,0.4126,2443.7,2443.6,4.092]
[1728841573608,0.4126,2443.7,2443.2,4.0041]
[1728841573912,0.40929,2443.6,2443.3,0.40933]
[1728841574698,0.4126,2443.7,2443.3,0.40933]
[1728841575101,1.43582,2443.7,2443.2,3.61715]
[1728841575298,0.40932,2443.5,2443.2,3.61714]
[1728841575508,0.40932,2443.5,2443.3,0.40934]
[1728841575704,0.40932,2443.5,2443.2,3.2078]
[1728841575899,0.40932,2443.5,2443.2,3.61714]
[1728841576913,1.43582,2443.7,2443.2,3.61714]
[1728841577406,0.40932,2443.5,2443.2,3.61714]
[1728841577607,0.40932,2443.5,2443.2,3.2078]
[1728841577818,0.40929,2443.6,2443.4,0.40932]
[1728841578205,0.40931,2443.5,2443.3,0.40933]
[1728841579014,0.4093,2443.6,2443.4,0.40932]
[1728841579211,0.4126,2443.7,2443.2,3.2078]
[1728841579212,0.40932,2443.5,2443.2,3.2078]
[1728841579418,0.40932,2443.4,2443.2,3.61715]
[1728841579709,0.40931,2443.5,2443.3,0.40934]
[1728841580212,3.6204,2443.7,2443.1,3.2078]
[1728841580512,0.40932,2443.5,2443.2,0.40934]
[1728841580814,0.40932,2443.5,2443.1,3.2078]
[1728841581005,0.40932,2443.5,2443.3,0.40934]
[1728841581205,3.6204,2443.7,2443.1,3.2078]
[1728841581407,0.40933,2443.4,2443.2,0.40935]
[1728841581611,0.40932,2443.5,2443.2,0.40936]
[1728841582106,0.40932,2443.5,2443.3,0.40934]
[1728841582304,0.4093,2443.6,2443.3,0.40934]
[1728841582621,0.40921,2444.1,2443.9,0.40923]
[1728841582813,0.40921,2444.1,2443.5,1.02327]
[1728841582814,0.4211,2444.1,2443.5,0.7882]
[1728841583306,0.40924,2443.9,2443.7,0.40926]
[1728841583811,0.40924,2444.0,2443.8,0.40925]
[1728841584911,0.40922,2444.0,2443.7,0.40926]
[1728841585414,0.40922,2444.0,2443.5,0.7882]
[1728841585415,3.2078,2444.0,2443.4,7.4108]
[1728841585618,0.40927,2443.8,2443.5,0.40929]
[1728841586022,0.40927,2443.8,2443.6,0.40929]
[1728841586916,4.23086,2444.0,2443.6,0.40929]
[1728841587118,3.2078,2444.0,2443.4,2.87]
[1728841587414,0.40926,2443.8,2443.6,0.40928]
[1728841588614,4.092,2443.7,2443.1,3.2078]
[1728841588915,0.3873,2443.6,2443.2,0.40934]
[1728841589112,0.40933,2443.4,2443.2,0.40934]
[1728841589507,0.3873,2443.6,2443.1,3.2078]
[1728841589715,1.41054,2443.6,2443.1,3.2078]
[1728841590113,0.3873,2443.6,2443.1,3.2078]
[1728841590310,3.89327,2443.5,2443.1,3.2078]
[1728841590511,0.40935,2443.3,2443.1,3.2078]
[1728841591817,0.3873,2443.6,2443.5,0.40931]
[1728841592919,0.4077,2444.0,2443.7,0.40927]
[1728841592920,3.2078,2443.8,2443.7,0.40927]
[1728841593821,0.794,2444.0,2443.5,2.87]
[1728841593822,0.3863,2444.0,2443.9,0.40924]
[1728841594011,6.0778,2444.3,2443.5,3.93116056]
[1728841594012,3.61698,2444.3,2444.1,0.4092]
[1728841594415,3.61698,2444.3,2444.0,0.40921]
[1728841594720,1.21885,2444.5,2444.2,0.40918]
[1728841594919,0.8097,2444.5,2444.0,0.40922]
[1728841595121,0.8097,2444.5,2443.9,1.06116056]
[1728841595122,0.8097,2444.5,2444.3,0.40917]
[1728841595919,0.8097,2444.5,2444.0,2.87]
[1728841596120,1.21884,2444.5,2444.2,0.40918]
[1728841596323,0.40915,2444.4,2444.0,0.40921]
[1728841596526,3.2078,2444.3,2444.1,0.40919]
[1728841596716,3.2078,2444.3,2444.2,0.40919]
[1728841597223,3.2078,2444.3,2444.1,0.40919]
[1728841597713,3.2078,2444.3,2443.9,2.39416056]
[1728841597714,3.2078,2444.3,2444.2,0.40919]
[1728841602824,0.8097,2444.5,2444.2,4.0912]
[1728841603013,0.8097,2444.5,2444.4,0.40915]